[Event "*** SCC Grand Prix: Titled Tuesday Blitz"]
[Site "Chess.com"]
[Date "2020.09.08"]
[Round "10"]
[White "Euge_chess"]
[Black "Konek-Gorbunok"]
[Result "0-1"]
[WhiteElo "2128"]
[BlackElo "2335"]
[TimeControl "180+1"]
[EndTime "11:56:34 PDT"]
[Termination "Konek-Gorbunok won on time"]

1. e4 {[%clk 0:03:00.9]} 1... c5 {[%clk 0:02:59.5]} 2. c3 {[%clk 0:03:00.4]}
2... d6 {[%clk 0:02:58.7]} 3. d4 {[%clk 0:02:59.9]} 3... cxd4 {[%clk 0:02:59.6]}
4. cxd4 {[%clk 0:03:00.2]} 4... Nf6 {[%clk 0:03:00.5]} 5. Nc3 {[%clk 0:03:00.6]}
5... g6 {[%clk 0:03:01]} 6. Nf3 {[%clk 0:03:00.8]} 6... Bg7 {[%clk 0:03:01.5]}
7. Bb5+ {[%clk 0:03:00.3]} 7... Nbd7 {[%clk 0:02:58.9]} 8. e5 {[%clk 0:02:50.5]}
8... dxe5 {[%clk 0:02:53.8]} 9. dxe5 {[%clk 0:02:49.8]} 9... Ng4 {[%clk
0:02:53.9]} 10. Bf4 {[%clk 0:02:13.1]} 10... O-O {[%clk 0:02:51.6]} 11. Qe2
{[%clk 0:02:08.9]} 11... a6 {[%clk 0:02:30]} 12. Bc4 {[%clk 0:01:50.3]} 12...
Qc7 {[%clk 0:01:55.7]} 13. Nd5 {[%clk 0:01:38.3]} 13... Qa5+ {[%clk 0:01:55]}
14. Bd2 {[%clk 0:01:35.9]} 14... Qd8 {[%clk 0:01:48.3]} 15. e6 {[%clk
0:01:23.1]} 15... Nde5 {[%clk 0:01:36.1]} 16. exf7+ {[%clk 0:01:14.1]} 16... Kh8
{[%clk 0:01:35.7]} 17. Bc3 {[%clk 0:00:41.3]} 17... Nxc4 {[%clk 0:01:17.7]} 18.
Qxc4 {[%clk 0:00:40.2]} 18... Be6 {[%clk 0:01:07.2]} 19. Bxg7+ {[%clk
0:00:16.2]} 19... Kxg7 {[%clk 0:01:07.3]} 20. Qc3+ {[%clk 0:00:14.7]} 20... Nf6
{[%clk 0:01:04.4]} 21. Nxf6 {[%clk 0:00:13.1]} 21... exf6 {[%clk 0:01:01.7]} 22.
O-O {[%clk 0:00:13.4]} 22... Rxf7 {[%clk 0:01:01.1]} 23. Rfe1 {[%clk 0:00:13.4]}
23... Bd7 {[%clk 0:00:39.2]} 24. Rad1 {[%clk 0:00:12.6]} 24... Qb6 {[%clk
0:00:36.6]} 25. Nd4 {[%clk 0:00:09.6]} 25... Rc8 {[%clk 0:00:26.8]} 26. Qd2
{[%clk 0:00:09.1]} 26... Rc5 {[%clk 0:00:17.2]} 27. b3 {[%clk 0:00:08.8]} 27...
Rd5 {[%clk 0:00:15.4]} 28. Qe3 {[%clk 0:00:08.7]} 28... Qd6 {[%clk 0:00:14.3]}
29. h3 {[%clk 0:00:02.4]} 29... Bc8 {[%clk 0:00:12.7]} 0-1

[Event "*** SCC Grand Prix: Titled Tuesday Blitz"]
[Site "Chess.com"]
[Date "2020.09.08"]
[Round "10"]
[White "AliKa2810"]
[Black "plumalka"]
[Result "0-1"]
[WhiteElo "2551"]
[BlackElo "2451"]
[TimeControl "180+1"]
[EndTime "11:56:36 PDT"]
[Termination "plumalka won by resignation"]

1. d4 {[%clk 0:03:00.9]} 1... Nf6 {[%clk 0:02:57.7]} 2. c4 {[%clk 0:02:59.4]}
2... c5 {[%clk 0:02:57.6]} 3. d5 {[%clk 0:02:59.1]} 3... b5 {[%clk 0:02:57.8]}
4. cxb5 {[%clk 0:02:59.7]} 4... a6 {[%clk 0:02:58.1]} 5. bxa6 {[%clk 0:03:00.4]}
5... Bxa6 {[%clk 0:02:58.5]} 6. Nc3 {[%clk 0:03:00.9]} 6... g6 {[%clk 0:02:58]}
7. Nf3 {[%clk 0:03:01.5]} 7... d6 {[%clk 0:02:57.9]} 8. e4 {[%clk 0:03:02]} 8...
Bxf1 {[%clk 0:02:57.9]} 9. Kxf1 {[%clk 0:03:02.9]} 9... Bg7 {[%clk 0:02:58.5]}
10. g3 {[%clk 0:03:03.5]} 10... O-O {[%clk 0:02:58.8]} 11. Kg2 {[%clk
0:03:04.2]} 11... Nbd7 {[%clk 0:02:59.3]} 12. a4 {[%clk 0:03:04.5]} 12... Ra6
{[%clk 0:02:59.1]} 13. Qc2 {[%clk 0:03:04.3]} 13... Qa8 {[%clk 0:02:58.7]} 14.
Nb5 {[%clk 0:02:53.3]} 14... Qb7 {[%clk 0:02:54.1]} 15. Rd1 {[%clk 0:02:52.2]}
15... Rfa8 {[%clk 0:02:52]} 16. h3 {[%clk 0:02:41.5]} 16... Nb6 {[%clk
0:02:41.7]} 17. Nc3 {[%clk 0:02:36.1]} 17... Nc4 {[%clk 0:02:19.5]} 18. b3
{[%clk 0:02:20]} 18... Na5 {[%clk 0:01:50.5]} 19. Rb1 {[%clk 0:02:19.6]} 19...
Qb4 {[%clk 0:01:46.6]} 20. Re1 {[%clk 0:01:56.6]} 20... c4 {[%clk 0:01:41.1]}
21. bxc4 {[%clk 0:01:47]} 21... Qxc4 {[%clk 0:01:39.3]} 22. Nd2 {[%clk
0:01:47.1]} 22... Qc5 {[%clk 0:01:35.8]} 23. Qd3 {[%clk 0:01:46.2]} 23... Nd7
{[%clk 0:01:26.6]} 24. Nb5 {[%clk 0:01:43.7]} 24... Ne5 {[%clk 0:01:21.1]} 25.
Qe2 {[%clk 0:01:43.9]} 25... Qc2 {[%clk 0:01:03.2]} 26. Nf3 {[%clk 0:01:33.3]}
26... Qxb1 {[%clk 0:01:01.3]} 27. Nxe5 {[%clk 0:01:08.4]} 27... Bxe5 {[%clk
0:01:00.1]} 28. Nc7 {[%clk 0:01:08.9]} 28... Qb7 {[%clk 0:00:48.1]} 29. Nxa8
{[%clk 0:01:06.7]} 29... Rxa8 {[%clk 0:00:46.1]} 30. Bh6 {[%clk 0:01:03]} 30...
Bg7 {[%clk 0:00:44.8]} 31. Bxg7 {[%clk 0:01:01.4]} 31... Kxg7 {[%clk 0:00:45.7]}
32. Qe3 {[%clk 0:00:56.5]} 32... Qb4 {[%clk 0:00:44.1]} 33. e5 {[%clk
0:00:52.2]} 33... Qc5 {[%clk 0:00:38.1]} 34. Qe4 {[%clk 0:00:46]} 34... dxe5
{[%clk 0:00:32.5]} 35. Qxe5+ {[%clk 0:00:45.8]} 35... f6 {[%clk 0:00:32.5]} 36.
Qxe7+ {[%clk 0:00:38]} 36... Qxe7 {[%clk 0:00:33.4]} 37. Rxe7+ {[%clk
0:00:38.2]} 37... Kg8 {[%clk 0:00:30.8]} 38. d6 {[%clk 0:00:38.4]} 38... Rd8
{[%clk 0:00:25]} 39. d7 {[%clk 0:00:22.2]} 39... Kf8 {[%clk 0:00:24.9]} 40. Rxh7
{[%clk 0:00:21.6]} 40... Nc6 {[%clk 0:00:21.8]} 41. h4 {[%clk 0:00:21.6]} 41...
Kg8 {[%clk 0:00:21.3]} 42. Rh6 {[%clk 0:00:17.1]} 42... Kg7 {[%clk 0:00:21.4]}
0-1

[Event "*** SCC Grand Prix: Titled Tuesday Blitz"]
[Site "Chess.com"]
[Date "2020.09.08"]
[Round "10"]
[White "GOGIEFF"]
[Black "gmasterkiller"]
[Result "1-0"]
[WhiteElo "2904"]
[BlackElo "2596"]
[TimeControl "180+1"]
[EndTime "11:56:37 PDT"]
[Termination "GOGIEFF won on time"]

1. d4 {[%clk 0:03:00.9]} 1... Nf6 {[%clk 0:02:59.2]} 2. c4 {[%clk 0:03:01.5]}
2... g6 {[%clk 0:02:58]} 3. Nc3 {[%clk 0:03:01.7]} 3... Bg7 {[%clk 0:02:58.4]}
4. e4 {[%clk 0:03:01.5]} 4... O-O {[%clk 0:02:58.9]} 5. Bg5 {[%clk 0:03:01.3]}
5... d6 {[%clk 0:02:59.1]} 6. Qd2 {[%clk 0:03:01.8]} 6... c5 {[%clk 0:02:55.3]}
7. d5 {[%clk 0:03:01.8]} 7... e6 {[%clk 0:02:53.8]} 8. Bd3 {[%clk 0:03:01.7]}
8... exd5 {[%clk 0:02:47.6]} 9. cxd5 {[%clk 0:03:01.2]} 9... Re8 {[%clk
0:02:40.7]} 10. Nge2 {[%clk 0:03:00.8]} 10... a6 {[%clk 0:02:29.9]} 11. a4
{[%clk 0:03:00.1]} 11... Nbd7 {[%clk 0:02:29.7]} 12. O-O {[%clk 0:02:59.9]}
12... Qc7 {[%clk 0:02:30.1]} 13. f4 {[%clk 0:02:52.5]} 13... c4 {[%clk
0:02:28.3]} 14. Bc2 {[%clk 0:02:52.1]} 14... Rb8 {[%clk 0:02:27.8]} 15. Nd4
{[%clk 0:02:30.5]} 15... h6 {[%clk 0:02:19.2]} 16. Bh4 {[%clk 0:02:29.7]} 16...
Nh7 {[%clk 0:02:17.8]} 17. Bf2 {[%clk 0:02:23]} 17... Nc5 {[%clk 0:02:15.3]} 18.
Qe2 {[%clk 0:02:08.6]} 18... Nd7 {[%clk 0:01:39.8]} 19. Rad1 {[%clk 0:02:01.2]}
19... Qa5 {[%clk 0:01:34.4]} 20. Qxc4 {[%clk 0:01:58.3]} 20... b5 {[%clk
0:01:31.1]} 21. Qe2 {[%clk 0:01:47.9]} 21... Bxd4 {[%clk 0:01:22.3]} 22. Bxd4
{[%clk 0:01:39.7]} 22... b4 {[%clk 0:01:22.3]} 23. Nb1 {[%clk 0:01:37.9]} 23...
b3 {[%clk 0:01:22.4]} 24. Bd3 {[%clk 0:01:37.6]} 24... Qxa4 {[%clk 0:01:22.7]}
25. Qf2 {[%clk 0:01:33.7]} 25... Ndf6 {[%clk 0:01:12.5]} 26. Nc3 {[%clk
0:01:32.6]} 26... Qd7 {[%clk 0:01:07.1]} 27. h3 {[%clk 0:01:32.4]} 27... Bb7
{[%clk 0:00:58]} 28. Ra1 {[%clk 0:01:20.1]} 28... Rbc8 {[%clk 0:00:55.6]} 29.
Ra3 {[%clk 0:01:15.8]} 29... Ba8 {[%clk 0:00:52.6]} 30. Rxb3 {[%clk 0:01:14.5]}
30... Rb8 {[%clk 0:00:53]} 31. Ra3 {[%clk 0:01:10.9]} 31... Rb4 {[%clk
0:00:52.3]} 32. Rxa6 {[%clk 0:01:05.9]} 32... Qb7 {[%clk 0:00:42.5]} 33. Ra7
{[%clk 0:01:04.1]} 33... Qb8 {[%clk 0:00:42.6]} 34. Rb1 {[%clk 0:00:55.5]} 34...
Nh5 {[%clk 0:00:39.5]} 35. e5 {[%clk 0:00:49.8]} 35... Nxf4 {[%clk 0:00:36.8]}
36. Bb5 {[%clk 0:00:44.5]} 36... dxe5 {[%clk 0:00:33.5]} 37. Bxe8 {[%clk
0:00:41.7]} 37... Rxd4 {[%clk 0:00:33.3]} 38. Bxf7+ {[%clk 0:00:40.9]} 38... Kh8
{[%clk 0:00:33.7]} 39. Rba1 {[%clk 0:00:40.4]} 39... Ng5 {[%clk 0:00:27.4]} 40.
Rxa8 {[%clk 0:00:38.3]} 40... Ngxh3+ {[%clk 0:00:27.6]} 41. gxh3 {[%clk
0:00:38.2]} 41... Nxh3+ {[%clk 0:00:28.5]} 42. Kg2 {[%clk 0:00:38.5]} 42... Nxf2
{[%clk 0:00:28.7]} 43. Rxb8+ {[%clk 0:00:37.9]} 43... Kg7 {[%clk 0:00:28.2]} 44.
Kxf2 {[%clk 0:00:38.3]} 44... Kxf7 {[%clk 0:00:29]} 45. Ra7+ {[%clk 0:00:37.3]}
1-0

[Event "*** SCC Grand Prix: Titled Tuesday Blitz"]
[Site "Chess.com"]
[Date "2020.09.08"]
[Round "10"]
[White "Ermito2020"]
[Black "skoularikii"]
[Result "1-0"]
[WhiteElo "2643"]
[BlackElo "2498"]
[TimeControl "180+1"]
[EndTime "11:56:37 PDT"]
[Termination "Ermito2020 won on time"]

1. e4 {[%clk 0:03:00.9]} 1... e5 {[%clk 0:02:58.2]} 2. Nf3 {[%clk 0:03:00.4]}
2... Nc6 {[%clk 0:02:57.8]} 3. d4 {[%clk 0:03:01]} 3... exd4 {[%clk 0:02:57]} 4.
Bc4 {[%clk 0:03:00.8]} 4... Nf6 {[%clk 0:02:53.8]} 5. O-O {[%clk 0:02:59.8]}
5... Nxe4 {[%clk 0:02:50.3]} 6. Re1 {[%clk 0:03:00.3]} 6... d5 {[%clk
0:02:50.5]} 7. Bxd5 {[%clk 0:03:00.9]} 7... Qxd5 {[%clk 0:02:48.9]} 8. Nc3
{[%clk 0:03:01.5]} 8... Qh5 {[%clk 0:02:38.3]} 9. Nxe4 {[%clk 0:03:01.5]} 9...
Be7 {[%clk 0:02:31.3]} 10. Bg5 {[%clk 0:03:01.5]} 10... Be6 {[%clk 0:02:17.9]}
11. Bxe7 {[%clk 0:02:58]} 11... Kxe7 {[%clk 0:02:17.7]} 12. Nxd4 {[%clk
0:02:43]} 12... Qxd1 {[%clk 0:02:16.3]} 13. Nxc6+ {[%clk 0:02:42.9]} 13... bxc6
{[%clk 0:02:16.2]} 14. Raxd1 {[%clk 0:02:43.8]} 14... Rad8 {[%clk 0:02:07.5]}
15. b3 {[%clk 0:02:43.1]} 15... Rxd1 {[%clk 0:02:03.1]} 16. Rxd1 {[%clk
0:02:44]} 16... Bf5 {[%clk 0:02:03.6]} 17. Re1 {[%clk 0:02:38.4]} 17... Rd8
{[%clk 0:02:01.1]} 18. f3 {[%clk 0:02:26.6]} 18... Rd4 {[%clk 0:01:22.8]} 19.
Ng3+ {[%clk 0:02:23.5]} 19... Kf6 {[%clk 0:01:21]} 20. Re2 {[%clk 0:02:14.9]}
20... Rd1+ {[%clk 0:01:17.9]} 21. Kf2 {[%clk 0:02:14.4]} 21... Rc1 {[%clk
0:01:08.5]} 22. c4 {[%clk 0:02:13.5]} 22... Bb1 {[%clk 0:01:01.6]} 23. Rd2
{[%clk 0:02:00.7]} 23... Rc2 {[%clk 0:00:58.6]} 24. Ne4+ {[%clk 0:01:54.1]}
24... Ke5 {[%clk 0:00:56.6]} 25. Rxc2 {[%clk 0:01:39.6]} 25... Bxc2 {[%clk
0:00:56.4]} 26. Ke3 {[%clk 0:01:33.9]} 26... f5 {[%clk 0:00:45.9]} 27. Nc5
{[%clk 0:01:23.5]} 27... f4+ {[%clk 0:00:39.3]} 28. Kd2 {[%clk 0:01:23.4]} 28...
Bb1 {[%clk 0:00:39.4]} 29. Na6 {[%clk 0:01:10.8]} 29... Bxa2 {[%clk 0:00:23.5]}
30. Kc2 {[%clk 0:01:08.8]} 30... Kd4 {[%clk 0:00:23.8]} 31. Kb2 {[%clk
0:01:04.8]} 31... Ke3 {[%clk 0:00:23.7]} 32. Nxc7 {[%clk 0:00:58.3]} 32... Kf2
{[%clk 0:00:23.7]} 33. Ne6 {[%clk 0:00:58.8]} 33... Kxg2 {[%clk 0:00:23.4]} 34.
Nxf4+ {[%clk 0:00:58.5]} 34... Kxh2 {[%clk 0:00:22.5]} 35. Kxa2 {[%clk
0:00:49.2]} 35... g6 {[%clk 0:00:22.7]} 36. Ne6 {[%clk 0:00:39.2]} 36... Kg3
{[%clk 0:00:19.9]} 37. Nf8 {[%clk 0:00:36.7]} 37... h5 {[%clk 0:00:15.8]} 38.
Nxg6 {[%clk 0:00:36.2]} 38... Kxf3 {[%clk 0:00:15.7]} 39. c5 {[%clk 0:00:36.3]}
39... Ke4 {[%clk 0:00:14.7]} 40. b4 {[%clk 0:00:35]} 40... Kd5 {[%clk
0:00:14.2]} 41. Kb3 {[%clk 0:00:34.8]} 41... a5 {[%clk 0:00:10]} 42. Nf4+ {[%clk
0:00:34.5]} 42... Kd4 {[%clk 0:00:08.3]} 43. Nxh5 {[%clk 0:00:32.1]} 1-0

[Event "*** SCC Grand Prix: Titled Tuesday Blitz"]
[Site "Chess.com"]
[Date "2020.09.08"]
[Round "10"]
[White "Hikaru"]
[Black "daro94"]
[Result "1-0"]
[WhiteElo "3202"]
[BlackElo "2976"]
[TimeControl "180+1"]
[EndTime "11:56:38 PDT"]
[Termination "Hikaru won on time"]

1. Nf3 {[%clk 0:03:00.9]} 1... Nf6 {[%clk 0:02:57.2]} 2. b3 {[%clk 0:03:00.1]}
2... e6 {[%clk 0:02:57.5]} 3. Bb2 {[%clk 0:03:00.1]} 3... d5 {[%clk 0:02:58.1]}
4. g3 {[%clk 0:02:53.9]} 4... Be7 {[%clk 0:02:58.6]} 5. Bg2 {[%clk 0:02:49]}
5... O-O {[%clk 0:02:59.2]} 6. O-O {[%clk 0:02:49.4]} 6... b6 {[%clk 0:02:57.6]}
7. d3 {[%clk 0:02:48.2]} 7... Bb7 {[%clk 0:02:55.5]} 8. Nbd2 {[%clk 0:02:49.1]}
8... c5 {[%clk 0:02:54.9]} 9. e3 {[%clk 0:02:46.1]} 9... Nc6 {[%clk 0:02:54.5]}
10. Qe2 {[%clk 0:02:46.5]} 10... Qc7 {[%clk 0:02:55.1]} 11. c4 {[%clk
0:02:46.1]} 11... Rfd8 {[%clk 0:02:51.7]} 12. a3 {[%clk 0:02:45.7]} 12... Rac8
{[%clk 0:02:48.1]} 13. Rac1 {[%clk 0:02:39.9]} 13... Qb8 {[%clk 0:02:48.4]} 14.
cxd5 {[%clk 0:02:35.2]} 14... Nxd5 {[%clk 0:02:46]} 15. e4 {[%clk 0:02:27.6]}
15... Nf6 {[%clk 0:02:44.7]} 16. Rfd1 {[%clk 0:02:24.9]} 16... Nd7 {[%clk
0:02:35.4]} 17. Nc4 {[%clk 0:02:23.8]} 17... b5 {[%clk 0:02:19.4]} 18. Ne3
{[%clk 0:02:22.1]} 18... Nde5 {[%clk 0:02:18.4]} 19. Nxe5 {[%clk 0:01:50.2]}
19... Nxe5 {[%clk 0:02:19.3]} 20. f4 {[%clk 0:01:50.6]} 20... Nc6 {[%clk
0:02:17]} 21. f5 {[%clk 0:01:51.2]} 21... Nd4 {[%clk 0:02:15.6]} 22. Qg4 {[%clk
0:01:51.6]} 22... Qe5 {[%clk 0:01:53.6]} 23. Rf1 {[%clk 0:01:44.2]} 23... g6
{[%clk 0:01:25]} 24. Kh1 {[%clk 0:01:41]} 24... Rf8 {[%clk 0:01:00.4]} 25. Rce1
{[%clk 0:01:38.7]} 25... Kh8 {[%clk 0:00:56.6]} 26. Qd1 {[%clk 0:01:21.5]} 26...
h5 {[%clk 0:00:43.5]} 27. b4 {[%clk 0:01:17]} 27... Kh7 {[%clk 0:00:39.3]} 28.
Nc2 {[%clk 0:01:11.3]} 28... a5 {[%clk 0:00:13.8]} 29. Nxd4 {[%clk 0:00:58.1]}
29... cxd4 {[%clk 0:00:13.9]} 30. bxa5 {[%clk 0:00:59]} 30... h4 {[%clk
0:00:09.6]} 31. Qg4 {[%clk 0:00:54.3]} 31... hxg3 {[%clk 0:00:06.9]} 32. Qxg3
{[%clk 0:00:48.7]} 32... Qxg3 {[%clk 0:00:05.9]} 33. hxg3 {[%clk 0:00:49.6]}
33... Rc2 {[%clk 0:00:05.8]} 34. Bxd4 {[%clk 0:00:45.8]} 34... exf5 {[%clk
0:00:06.3]} 35. a6 {[%clk 0:00:34.5]} 35... Ba8 {[%clk 0:00:06.2]} 36. Rb1
{[%clk 0:00:24.6]} 36... Rd8 {[%clk 0:00:06.2]} 37. Rf2 {[%clk 0:00:22.4]} 37...
Rc6 {[%clk 0:00:03.3]} 38. Ba1 {[%clk 0:00:13.7]} 38... Rxa6 {[%clk 0:00:03.6]}
39. exf5 {[%clk 0:00:14.4]} 39... Bxg2+ {[%clk 0:00:03.1]} 40. Kxg2 {[%clk
0:00:15.3]} 40... Rxd3 {[%clk 0:00:03.4]} 41. Rh1+ {[%clk 0:00:15.3]} 1-0

[Event "*** SCC Grand Prix: Titled Tuesday Blitz"]
[Site "Chess.com"]
[Date "2020.09.08"]
[Round "10"]
[White "latixxa"]
[Black "dosto07"]
[Result "0-1"]
[WhiteElo "2141"]
[BlackElo "2301"]
[TimeControl "180+1"]
[EndTime "11:56:40 PDT"]
[Termination "dosto07 won by resignation"]

1. c4 {[%clk 0:03:00.9]} 1... e5 {[%clk 0:02:59.3]} 2. Nc3 {[%clk 0:03:01.1]}
2... Nf6 {[%clk 0:02:59.1]} 3. Nf3 {[%clk 0:03:01.3]} 3... Nc6 {[%clk
0:02:58.4]} 4. e4 {[%clk 0:03:01.6]} 4... Bc5 {[%clk 0:02:56.5]} 5. Nxe5 {[%clk
0:03:01.1]} 5... Nxe5 {[%clk 0:02:55.5]} 6. d4 {[%clk 0:03:00.8]} 6... Bb4
{[%clk 0:02:48.5]} 7. dxe5 {[%clk 0:03:00.2]} 7... Nxe4 {[%clk 0:02:48.5]} 8.
Qf3 {[%clk 0:03:00.4]} 8... Nxc3 {[%clk 0:02:44.4]} 9. bxc3 {[%clk 0:03:01.3]}
9... Bc5 {[%clk 0:02:38.8]} 10. Qg3 {[%clk 0:02:59.3]} 10... g6 {[%clk 0:02:20]}
11. Bh6 {[%clk 0:02:59.2]} 11... Bf8 {[%clk 0:02:19.4]} 12. Bg5 {[%clk
0:02:57.1]} 12... Be7 {[%clk 0:02:19.2]} 13. Bh6 {[%clk 0:02:55.9]} 13... d6
{[%clk 0:02:11.1]} 14. Be2 {[%clk 0:02:55]} 14... Bf8 {[%clk 0:02:08.1]} 15. Bg5
{[%clk 0:02:52.1]} 15... Be7 {[%clk 0:02:03.4]} 16. Bh6 {[%clk 0:02:51.7]} 16...
Qd7 {[%clk 0:02:03.1]} 17. Rd1 {[%clk 0:02:48]} 17... Qe6 {[%clk 0:01:51]} 18.
f4 {[%clk 0:02:33.7]} 18... Bd7 {[%clk 0:01:48.1]} 19. O-O {[%clk 0:02:32.5]}
19... O-O-O {[%clk 0:01:44.5]} 20. Qf2 {[%clk 0:02:25.2]} 20... Kb8 {[%clk
0:01:41]} 21. Bf3 {[%clk 0:02:20.6]} 21... Qxc4 {[%clk 0:01:35.9]} 22. Bd5
{[%clk 0:02:18.2]} 22... Qc5 {[%clk 0:01:26.3]} 23. Rd4 {[%clk 0:02:15.5]} 23...
Be6 {[%clk 0:01:20.4]} 24. Be4 {[%clk 0:01:33.4]} 24... dxe5 {[%clk 0:01:17.6]}
25. fxe5 {[%clk 0:01:32.7]} 25... Qxc3 {[%clk 0:01:00.6]} 26. Be3 {[%clk
0:01:29]} 26... Rxd4 {[%clk 0:00:42.4]} 27. Bxd4 {[%clk 0:01:29.9]} 27... Qa5
{[%clk 0:00:42.4]} 28. Rb1 {[%clk 0:01:27.4]} 28... Bc8 {[%clk 0:00:36.7]} 29.
Qc2 {[%clk 0:01:09.6]} 29... Rd8 {[%clk 0:00:25.9]} 30. Bf2 {[%clk 0:00:47.1]}
30... Rd2 {[%clk 0:00:19.6]} 31. Qc6 {[%clk 0:00:46.2]} 31... Rd1+ {[%clk
0:00:14.9]} 32. Rxd1 {[%clk 0:00:37.7]} 32... bxc6 {[%clk 0:00:14.6]} 33. Rb1+
{[%clk 0:00:37.8]} 33... Bb4 {[%clk 0:00:12.1]} 34. a3 {[%clk 0:00:32.4]} 34...
Qxa3 {[%clk 0:00:10]} 35. Bc5 {[%clk 0:00:23.7]} 35... a5 {[%clk 0:00:09]} 36.
Bxc6 {[%clk 0:00:22.8]} 36... Bf5 {[%clk 0:00:07.8]} 37. Bxb4 {[%clk 0:00:16.5]}
37... Qe3+ {[%clk 0:00:06.2]} 0-1

[Event "*** SCC Grand Prix: Titled Tuesday Blitz"]
[Site "Chess.com"]
[Date "2020.09.08"]
[Round "10"]
[White "Happy1712Drummer"]
[Black "Karina_Ivanova"]
[Result "1-0"]
[WhiteElo "2405"]
[BlackElo "2267"]
[TimeControl "180+1"]
[EndTime "11:56:41 PDT"]
[Termination "Happy1712Drummer won on time"]

1. d4 {[%clk 0:03:00.9]} 1... Nf6 {[%clk 0:02:58.9]} 2. c4 {[%clk 0:02:58.7]}
2... e6 {[%clk 0:02:58.6]} 3. g3 {[%clk 0:02:55.5]} 3... Bb4+ {[%clk 0:02:57.2]}
4. Nd2 {[%clk 0:02:52.5]} 4... c5 {[%clk 0:02:55.9]} 5. a3 {[%clk 0:02:46.8]}
5... Bxd2+ {[%clk 0:02:54.8]} 6. Qxd2 {[%clk 0:02:42]} 6... cxd4 {[%clk
0:02:55.7]} 7. Nf3 {[%clk 0:02:37.4]} 7... d5 {[%clk 0:02:43.7]} 8. cxd5 {[%clk
0:02:31.2]} 8... Nxd5 {[%clk 0:02:40.5]} 9. Nxd4 {[%clk 0:02:24.4]} 9... e5
{[%clk 0:02:31.8]} 10. Nb5 {[%clk 0:02:19.6]} 10... O-O {[%clk 0:02:27]} 11. Bg2
{[%clk 0:02:15.9]} 11... Be6 {[%clk 0:02:23.8]} 12. e4 {[%clk 0:02:13.2]} 12...
Nb6 {[%clk 0:02:00.6]} 13. Qxd8 {[%clk 0:02:10.5]} 13... Rxd8 {[%clk 0:02:00.4]}
14. Nc7 {[%clk 0:02:10.9]} 14... Nc6 {[%clk 0:01:59.5]} 15. Nxa8 {[%clk
0:02:08.6]} 15... Rxa8 {[%clk 0:01:54.5]} 16. O-O {[%clk 0:02:05.4]} 16... Nd4
{[%clk 0:01:52.5]} 17. Be3 {[%clk 0:02:01.2]} 17... Nc2 {[%clk 0:01:49.6]} 18.
Rac1 {[%clk 0:01:58.7]} 18... Nxe3 {[%clk 0:01:49.1]} 19. fxe3 {[%clk
0:01:59.2]} 19... Nc4 {[%clk 0:01:38]} 20. Rf2 {[%clk 0:01:20.6]} 20... Rd8
{[%clk 0:01:15.1]} 21. Re2 {[%clk 0:01:12.4]} 21... b5 {[%clk 0:01:03.7]} 22.
Bf1 {[%clk 0:01:10.8]} 22... Rd3 {[%clk 0:00:45.7]} 23. Ree1 {[%clk 0:01:01.7]}
23... Rb3 {[%clk 0:00:19.1]} 24. Red1 {[%clk 0:00:55.1]} 24... g6 {[%clk
0:00:17.2]} 25. Bxc4 {[%clk 0:00:49.8]} 25... bxc4 {[%clk 0:00:15.4]} 26. Rd8+
{[%clk 0:00:29.4]} 26... Kg7 {[%clk 0:00:15.1]} 27. Ra8 {[%clk 0:00:27.9]} 27...
Rxb2 {[%clk 0:00:12.9]} 28. Rxa7 {[%clk 0:00:27]} 28... Rb3 {[%clk 0:00:11.3]}
29. a4 {[%clk 0:00:26.3]} 29... Rxe3 {[%clk 0:00:10.3]} 30. a5 {[%clk
0:00:25.7]} 30... Ra3 {[%clk 0:00:09]} 31. Kf2 {[%clk 0:00:21.8]} 31... Ra2+
{[%clk 0:00:07.7]} 32. Ke3 {[%clk 0:00:20.8]} 32... Bg4 {[%clk 0:00:06.1]} 33.
Re1 {[%clk 0:00:17.4]} 33... Ra3+ {[%clk 0:00:04.2]} 34. Kd2 {[%clk 0:00:16.1]}
34... c3+ {[%clk 0:00:02]} 35. Kc2 {[%clk 0:00:15.9]} 35... Be6 {[%clk
0:00:01.6]} 36. Re3 {[%clk 0:00:14.5]} 1-0